fUSD/lending_fUSD_20250811
["ID","MTS","AMOUNT","RATE_DAILY","PERIOD"]
[378549753,1754911838512,-400.0,0.00016626,2]
[378549754,1754911838522,-1093.12,0.00016626,2]
[378549755,1754911838531,-400.89622164,0.00016626,2]
[378549757,1754911838540,-897.05,0.00016626,2]
[378549758,1754911838549,-466.2,0.00016626,2]
[378549759,1754911838559,-1236.96,0.00016626,2]
[378549760,1754911838570,-809.71,0.00016626,2]
[378549761,1754911838579,-1411.19,0.00016626,2]
[378549762,1754911838589,-432.08902181,0.00016626,2]
[378549763,1754911838598,-400.0,0.00016626,2]
[378549764,1754911838607,-400.0,0.00016626,2]
[378549765,1754911838616,-1628.65,0.00016626,2]
[378549766,1754911838625,-971.1,0.00016626,2]
[378549767,1754911838635,-400.0,0.00016626,2]
[378549768,1754911838644,-400.0,0.00016626,2]
[378549769,1754911838653,-1500.65,0.00016626,2]
[378549770,1754911838662,-4211.64,0.00016626,2]
[378549771,1754911838672,-403.57476537,0.00016626,2]
[378549772,1754911838681,-1095.15,0.00016626,2]
[378549773,1754911838690,-495.49,0.00016626,2]
[378549774,1754911838699,-400.0,0.00016626,2]
[378549776,1754911838709,-400.0,0.00016626,2]
[378549778,1754911838719,-1026.53,0.00016626,2]
[378549780,1754911838728,-770.92,0.00016626,2]
[378549781,1754911838737,-400.82088547,0.00016626,2]
[378549783,1754911838746,-400.0,0.00016626,2]
[378549785,1754911838755,-1492.98,0.00016626,2]
[378549787,1754911838765,-400.0,0.00016626,2]
[378549789,1754911838774,-401.63054898,0.00016626,2]
[378549791,1754911838783,-2011.23,0.00016626,2]
[378549793,1754911838793,-400.0,0.00016626,2]
[378549795,1754911838803,-400.0,0.00016626,2]
[378549797,1754911838815,-1100.47,0.00016626,2]
[378549799,1754911838825,-400.0,0.00016626,2]
[378549801,1754911838834,-400.0,0.00016626,2]
[378549803,1754911838844,-570.97,0.00016626,2]
[378549805,1754911838854,-400.0,0.00016626,2]
[378549807,1754911838863,-687.66,0.00016626,2]
[378549809,1754911838873,-439.69,0.00016626,2]
[378549811,1754911838882,-1922.26,0.00016626,2]
[378549813,1754911838893,-400.0,0.00016626,2]
[378549815,1754911838903,-400.0,0.00016626,2]
[378549817,1754911838912,-844.33,0.00016626,2]
[378549819,1754911838921,-879.08,0.00016626,2]
[378549821,1754911838930,-400.0,0.00016626,2]
[378549823,1754911838939,-400.0,0.00016626,2]
[378549825,1754911838948,-400.0,0.00016626,2]
[378549827,1754911838958,-400.0,0.00016626,2]
[378549829,1754911838968,-400.0,0.00016626,2]
[378549831,1754911838977,-400.0,0.00016626,2]
[378549833,1754911838987,-694.26,0.00016626,2]
[378549835,1754911838996,-400.0,0.00016626,2]
[378549837,1754911839006,-629.14,0.00016626,2]
[378549839,1754911839015,-400.0,0.00016626,2]
[378549841,1754911839025,-457.83430342,0.00016626,2]
[378549843,1754911839035,-400.0,0.00016626,2]
[378549845,1754911839045,-859.98,0.00016626,2]
[378549847,1754911839055,-2523.58,0.00016626,2]
[378549850,1754911839066,-587.11,0.00016626,2]
[378549852,1754911839075,-400.0,0.00016626,2]
[378549854,1754911839084,-842.03,0.00016626,2]
[378549855,1754911839093,-400.0,0.00016626,2]
[378549857,1754911839103,-538.88,0.00016626,2]
[378549859,1754911839113,-400.0,0.00016626,2]
[378549861,1754911839122,-514.54,0.00016626,2]
[378549863,1754911839132,-541.82,0.00016626,2]
[378549865,1754911839142,-1601.49,0.00016626,2]
[378549868,1754911839151,-400.0,0.00016626,2]
[378549870,1754911839161,-443.98,0.00016626,2]
[378549872,1754911839171,-400.0,0.00016626,2]
[378549874,1754911839180,-400.0,0.00016626,2]
[378549876,1754911839190,-400.0,0.00016626,2]
[378549878,1754911839201,-630.64,0.00016626,2]
[378549880,1754911839210,-400.0,0.00016626,2]
[378549882,1754911839219,-497.44,0.00016626,2]
[378549884,1754911839228,-400.0,0.00016626,2]
[378549886,1754911839237,-460.0,0.00016626,2]
[378549888,1754911839247,-400.0,0.00016626,2]
[378549890,1754911839257,-2103.02,0.00016626,2]
[378549892,1754911839268,-400.0,0.00016626,2]
[378549894,1754911839277,-400.0,0.00016626,2]
[378549896,1754911839287,-1222.6,0.00016626,2]
[378549898,1754911839296,-1150.88,0.00016626,2]
[378549900,1754911839306,-400.0,0.00016626,2]
[378549902,1754911839318,-400.0,0.00016626,2]
[378549904,1754911839327,-972.94,0.00016626,2]
[378549906,1754911839336,-400.0,0.00016626,2]
[378549907,1754911839345,-669.91,0.00016626,2]
[378549910,1754911839355,-1864.32,0.00016626,2]
[378549912,1754911839365,-400.0,0.00016626,2]
[378549914,1754911839374,-932.38,0.00016626,2]
[378549916,1754911839384,-193.79105354,0.00016626,2]
[378549918,1754911839393,-400.0,0.00016626,2]
[378549920,1754911839403,-400.0,0.00016626,2]
[378549922,1754911839413,-707.44,0.00016626,2]
[378549924,1754911839422,-757.5,0.00016626,2]
[378549926,1754911839432,-400.0,0.00016626,2]
[378549928,1754911839442,-400.0,0.00016626,2]
[378549930,1754911839451,-950.19,0.00016626,2]
[378549932,1754911839461,-947.22,0.00016626,2]
[378549934,1754911839470,-967.39,0.00016626,2]
[378549936,1754911839480,-402.05132886,0.00016626,2]
[378549938,1754911839489,-401.52135149,0.00016626,2]
[378549940,1754911839498,-702.11,0.00016626,2]
[378549942,1754911839507,-400.19536396,0.00016626,2]
[378549944,1754911839517,-401.89554758,0.00016626,2]
[378549946,1754911839527,-402.57944404,0.00016626,2]
[378549948,1754911839536,-1158.29,0.00016626,2]
[378549950,1754911839545,-500.0,0.00016626,2]
[378549952,1754911839555,-400.0,0.00016626,2]
[378549954,1754911839566,-1031.74,0.00016626,2]
[378549956,1754911839575,-1978.4,0.00016626,2]
[378549958,1754911839584,-400.0,0.00016626,2]
[378549961,1754911839594,-400.0,0.00016626,2]
[378549963,1754911839604,-400.0,0.00016626,2]
[378549965,1754911839614,-1411.9,0.00016626,2]
[378549967,1754911839623,-400.0,0.00016626,2]
[378549969,1754911839632,-4873.79,0.00016626,2]
[378549971,1754911839643,-1170.02,0.00016626,2]
[378549973,1754911839652,-1295.32,0.00016626,2]
[378549975,1754911839661,-3182.98,0.00016626,2]
[378549977,1754911839670,-400.0,0.00016626,2]
[378549979,1754911839679,-473.85039908,0.00016626,2]
[378549981,1754911839689,-400.0,0.00016626,2]
[378549983,1754911839698,-1423.17,0.00016626,2]
[378549985,1754911839707,-400.0,0.00016626,2]
[378549987,1754911839717,-400.0,0.00016626,2]
[378549989,1754911839726,-987.42,0.00016626,2]
[378549990,1754911839738,-1654.99,0.00016626,2]
[378549993,1754911839748,-400.0,0.00016626,2]
[378549995,1754911839758,-927.91,0.00016626,2]
[378549997,1754911839767,-400.0,0.00016626,2]
[378549999,1754911839777,-1338.86,0.00016626,2]
[378550000,1754911839786,-400.0,0.00016626,2]
[378550002,1754911839796,-922.47,0.00016626,2]
[378550004,1754911839805,-500.0,0.00016626,2]
[378550006,1754911839819,-400.0,0.00016626,2]
[378550008,1754911839828,-505.46290763,0.00016626,2]
[378550010,1754911839838,-402.39498502,0.00016626,2]
[378550012,1754911839847,-944.58,0.00016626,2]
[378550014,1754911839858,-1006.24766923,0.00016626,2]
[378550020,1754911839900,-170.04233077,0.00016626,2]
[378550022,1754911839909,-1715.19788795,0.00016626,2]
[378550024,1754911839920,-781.35,0.00016626,2]
[378550026,1754911839934,-1146.83211205,0.00016626,2]
[378550028,1754911839944,-1150.92,0.00016626,2]
[378550030,1754911839953,-400.0,0.00016626,2]
[378550032,1754911839963,-220.58273423,0.00016626,2]
[378550034,1754911839975,-179.41726577,0.00016626,2]
[378550036,1754911839984,-71.75612615,0.00016626,2]
[378550039,1754911839996,-328.24387385,0.00016626,2]
[378550041,1754911840005,-976.84,0.00016626,2]
[378550043,1754911840015,-309.21014688,0.00016626,2]
[378550045,1754911840024,-400.0,0.00016626,2]
[378550047,1754911840034,-400.0,0.00016626,2]
[378550049,1754911840043,-1730.28233307,0.00016626,2]
[378550103,1754911840495,-77.01766693,0.00016626,2]
[378550105,1754911840505,-400.0,0.00016626,2]
[378550108,1754911840514,-632.25,0.00016626,2]
[378550109,1754911840523,-1022.16,0.00016626,2]
[378550112,1754911840534,-400.0,0.00016626,2]
[378550114,1754911840543,-1692.61,0.00016626,2]
[378550116,1754911840551,-400.0,0.00016626,2]
[378550118,1754911840561,-1524.48,0.00016626,2]
[378550120,1754911840572,-401.20211806,0.00016626,2]
[378550122,1754911840580,-605.31,0.00016626,2]
[378550124,1754911840590,-177.34180925,0.00016626,2]
[378550140,1754911840728,-224.5098532,0.00016626,2]
[378550142,1754911840738,-982.1956468,0.00016626,2]
[378550146,1754911840770,-363.96648,0.00016626,2]
[378550148,1754911840782,-84.5178732,0.00016626,2]
[378550150,1754911840791,-400.0,0.00016626,2]
[378550152,1754911840801,-400.0,0.00016626,2]
[378550154,1754911840811,-1188.27,0.00016626,2]
[378550156,1754911840824,-400.0,0.00016626,2]
[378550158,1754911840833,-400.0,0.00016626,2]
[378550160,1754911840842,-2259.37,0.00016626,2]
[378550163,1754911840852,-1595.74,0.00016626,2]
[378550165,1754911840862,-400.0,0.00016626,2]
[378550167,1754911840872,-405.33629491,0.00016626,2]
[378550169,1754911840881,-799.55,0.00016626,2]
[378550171,1754911840893,-3171.63,0.00016626,2]
[378550173,1754911840902,-405.82499617,0.00016626,2]
[378550175,1754911840912,-400.0,0.00016626,2]
[378550177,1754911840921,-401.72002273,0.00016626,2]
[378550179,1754911840931,-1609.11,0.00016626,2]
[378550181,1754911840941,-1268.4,0.00016626,2]
[378550183,1754911840951,-400.0,0.00016626,2]
[378550185,1754911840961,-400.0,0.00016626,2]
[378550188,1754911840970,-400.0,0.00016626,2]
[378550190,1754911840982,-400.0,0.00016626,2]
[378550192,1754911840991,-400.0,0.00016626,2]
[378550194,1754911841001,-400.0,0.00016626,2]
[378550196,1754911841011,-400.0,0.00016626,2]
[378550198,1754911841020,-401.19317197,0.00016626,2]
[378550200,1754911841030,-400.0,0.00016626,2]
[378550202,1754911841040,-1494.24892147,0.00016626,2]
[378550204,1754911841052,-56.37107853,0.00016626,2]
[378550206,1754911841062,-396.26892147,0.00016626,2]
[378550208,1754911841077,-572.17885168,0.00016626,2]
[378550211,1754911841088,-468.40396298,0.00016626,2]
[378550213,1754911841099,-474.90826387,0.00016626,2]
[378550215,1754911841109,-400.0,0.00016626,2]
[378550217,1754911841118,-1164.09173613,0.00016626,2]
[378550219,1754911841129,-899.75580869,0.00016626,2]
[378550224,1754911841170,-4994.71245518,0.00016626,2]
[378550226,1754911841180,-1772.06,0.00016626,2]
[378550228,1754911841189,-2185.78,0.00016626,2]
[378550230,1754911841199,-400.0,0.00016626,2]
[378550232,1754911841208,-2047.5,0.00016626,2]
[378550234,1754911841217,-400.0,0.00016626,2]
[378550236,1754911841226,-390.41919044,0.00016626,2]
[378550363,1754911842453,-9.58080956,0.00016626,2]
[378550366,1754911842465,-248.39769879,0.00016626,2]
[378550373,1754911842525,-1207.44230121,0.00016626,2]
[378550375,1754911842536,-161.65078805,0.00016626,2]
[378550377,1754911842548,-2109.09,0.00016626,2]
[378550380,1754911842559,-422.07,0.00016626,2]
[378550382,1754911842571,-400.0,0.00016626,2]
[378550384,1754911842583,-400.88330054,0.00016626,2]
[378550386,1754911842594,-400.0,0.00016626,2]
[378550388,1754911842605,-1510.91518269,0.00016626,2]
[378550392,1754911842632,-846.02481731,0.00016626,2]
[378550394,1754911842644,-967.05,0.00016626,2]
[378550396,1754911842656,-400.0,0.00016626,2]
[378550398,1754911842668,-1728.08,0.00016626,2]
[378550401,1754911842679,-2629.1701489,0.00016626,2]
[378550403,1754911842694,-161.3598511,0.00016626,2]
[378550405,1754911842705,-933.86,0.00016626,2]
[378550407,1754911842716,-400.0,0.00016626,2]
[378550410,1754911842727,-790.79,0.00016626,2]
[378550412,1754911842739,-1268.67,0.00016626,2]
[378550414,1754911842750,-320.06923021,0.00016626,2]
[378550416,1754911842761,-913.62,0.00016626,2]
[378550418,1754911842772,-1497.94,0.00016626,2]
[378550420,1754911842783,-400.0,0.00016626,2]
[378550422,1754911842794,-1217.37,0.00016626,2]
[378550425,1754911842806,-400.0,0.00016626,2]
[378550427,1754911842820,-400.0,0.00016626,2]
[378550429,1754911842831,-1551.41,0.00016626,2]
[378550431,1754911842842,-1261.28,0.00016626,2]
[378550433,1754911842853,-3479.72,0.00016626,2]
[378550435,1754911842864,-401.70217259,0.00016626,2]
[378550437,1754911842875,-400.0,0.00016626,2]
[378550439,1754911842887,-400.0,0.00016626,2]
[378550442,1754911842899,-1863.27,0.00016626,2]
[378550444,1754911842910,-400.0,0.00016626,2]
[378550446,1754911842922,-400.0,0.00016626,2]
[378550448,1754911842933,-400.0,0.00016626,2]
[378550450,1754911842944,-690.24,0.00016626,2]
[378550452,1754911842955,-2276.04,0.00016626,2]
[378550454,1754911842967,-400.0,0.00016626,2]
[378550457,1754911842978,-1453.43,0.00016626,2]
[378550459,1754911842989,-400.0,0.00016626,2]
[378550461,1754911843000,-400.0,0.00016626,2]
[378550463,1754911843012,-1743.44,0.00016626,2]
[378550465,1754911843023,-1069.05,0.00016626,2]
[378550468,1754911843035,-1568.27,0.00016626,2]
[378550470,1754911843046,-1833.38,0.00016626,2]
[378550472,1754911843058,-400.0,0.00016626,2]
[378550474,1754911843069,-2175.93,0.00016626,2]
[378550477,1754911843081,-400.0,0.00016626,2]
[378550479,1754911843093,-400.0,0.00016626,2]
[378550481,1754911843105,-956.91,0.00016626,2]
[378550483,1754911843116,-400.0,0.00016626,2]
[378550485,1754911843127,-805.98,0.00016626,2]
[378550488,1754911843139,-3821.22,0.00016626,2]
[378550490,1754911843151,-402.41130894,0.00016626,2]
[378550492,1754911843163,-2476.86,0.00016626,2]
[378550494,1754911843174,-400.0,0.00016626,2]
[378550496,1754911843185,-3242.82,0.00016626,2]
[378550498,1754911843197,-1576.24,0.00016626,2]
[378550500,1754911843208,-400.81155394,0.00016626,2]
[378550503,1754911843219,-705.79,0.00016626,2]
[378550507,1754911843230,-400.0,0.00016626,2]
[378550510,1754911843241,-830.67,0.00016626,2]
[378550513,1754911843251,-400.0,0.00016626,2]
[378550516,1754911843262,-400.0,0.00016626,2]
[378550518,1754911843273,-1649.99,0.00016626,2]
[378550520,1754911843285,-500.0,0.00016626,2]
[378550523,1754911843296,-741.36,0.00016626,2]
[378550525,1754911843307,-1808.43,0.00016626,2]
[378550527,1754911843319,-400.0,0.00016626,2]
[378550529,1754911843329,-1749.61,0.00016626,2]
[378550531,1754911843340,-1736.62,0.00016626,2]
[378550533,1754911843352,-1019.84,0.00016626,2]
[378550536,1754911843363,-400.0,0.00016626,2]
[378550538,1754911843373,-400.0,0.00016626,2]
[378550540,1754911843385,-400.0,0.00016626,2]
[378550542,1754911843396,-1535.76,0.00016626,2]
[378550544,1754911843407,-972.21,0.00016626,2]
[378550546,1754911843417,-467.3,0.00016626,2]
[378550548,1754911843428,-6461.5,0.00016626,2]
[378550551,1754911843439,-402.42542941,0.00016626,2]
[378550553,1754911843450,-1398.8,0.00016626,2]
[378550555,1754911843461,-1880.26,0.00016626,2]
[378550557,1754911843472,-400.0,0.00016626,2]
[378550559,1754911843483,-668.56,0.00016626,2]
[378550561,1754911843493,-2576.34,0.00016626,2]
[378550563,1754911843504,-1311.82,0.00016626,2]
[378550565,1754911843516,-1611.33,0.00016626,2]
[378550568,1754911843527,-1824.83,0.00016626,2]
[378550570,1754911843538,-2093.51,0.00016626,2]
[378550572,1754911843549,-3293.7,0.00016626,2]
[378550574,1754911843560,-1455.7,0.00016626,2]
[378550576,1754911843573,-400.0,0.00016626,2]
[378550578,1754911843584,-2448.21,0.00016626,2]
[378550581,1754911843596,-568.87,0.00016626,2]
[378550583,1754911843607,-1102.18,0.00016626,2]
[378550585,1754911843619,-400.0,0.00016626,2]
[378550587,1754911843630,-1483.12,0.00016626,2]
[378550589,1754911843641,-400.0,0.00016626,2]
[378550591,1754911843653,-420.0,0.00016626,2]
[378550594,1754911843665,-3684.96,0.00016626,2]
[378550596,1754911843677,-526.52,0.00016626,2]
[378550598,1754911843688,-400.0,0.00016626,2]
[378550600,1754911843699,-2449.33813276,0.00016626,2]
[378550603,1754911843716,-2018.148138,0.00016626,2]
[378550605,1754911843729,-544.81372924,0.00016626,2]
[378550608,1754911843741,-533.56,0.00016626,2]
[378550610,1754911843753,-727.49102751,0.00016626,2]
[378550613,1754911843766,-738.46897249,0.00016626,2]
[378550615,1754911843778,-812.01,0.00016626,2]
[378550617,1754911843790,-400.0,0.00016626,2]
[378550619,1754911843801,-500.0,0.00016626,2]
[378550621,1754911843815,-2012.47,0.00016626,2]
[378550624,1754911843832,-500.0,0.00016626,2]
[378550626,1754911843844,-780.61,0.00016626,2]
[378550628,1754911843857,-400.0,0.00016626,2]
[378550630,1754911843868,-1062.59,0.00016626,2]
[378550632,1754911843881,-487.31,0.00016626,2]
[378550634,1754911843895,-526.9,0.00016626,2]
[378550636,1754911843907,-2075.43,0.00016626,2]
[378550639,1754911843920,-400.0,0.00016626,2]
[378550641,1754911843933,-1530.73,0.00016626,2]
[378550643,1754911843945,-400.0,0.00016626,2]
[378550645,1754911843956,-400.0,0.00016626,2]
[378550647,1754911843966,-400.0,0.00016626,2]
[378550649,1754911843977,-2128.1,0.00016626,2]
[378550690,1754911844609,-830.13,0.00016626,2]
[378550694,1754911844640,-400.0,0.00016626,2]
[378550698,1754911844665,-300.0,0.00016626,2]
[378550701,1754911844686,-2817.86,0.00016626,2]
[378550703,1754911844696,-400.0,0.00016626,2]
[378550705,1754911844705,-2465.95,0.00016626,2]
[378550707,1754911844715,-1245.44,0.00016626,2]
[378550709,1754911844726,-400.0,0.00016626,2]
[378550711,1754911844736,-400.0,0.00016626,2]
[378550713,1754911844748,-400.0,0.00016626,2]
[378550715,1754911844758,-939.98,0.00016626,2]
[378550717,1754911844767,-1988.07,0.00016626,2]
[378550719,1754911844776,-1762.87,0.00016626,2]
[378550721,1754911844785,-783.1,0.00016626,2]
[378550723,1754911844795,-402.7550502,0.00016626,2]
[378550725,1754911844804,-2156.88,0.00016626,2]
[378550727,1754911844814,-500.0,0.00016626,2]
[378550729,1754911844828,-500.0,0.00016626,2]
[378550731,1754911844838,-1384.77,0.00016626,2]
[378550733,1754911844847,-1346.81,0.00016626,2]
[378550735,1754911844858,-500.0,0.00016626,2]
[378550737,1754911844867,-1851.77,0.00016626,2]
[378550739,1754911844876,-400.0,0.00016627,2]
[378550740,1754911844886,-411.79762771,0.00016627,2]
[378550742,1754911844895,-279.51283804,0.00016627,2]
[378550744,1754911844907,-400.0,0.00016627,2]
[378550747,1754911844917,-400.0,0.00016627,2]
[378550749,1754911844927,-402.09013384,0.00016627,2]
[378550751,1754911844936,-400.0,0.00016627,2]
[378550753,1754911844946,-400.0,0.00016627,2]
[378550755,1754911844956,-400.0,0.00016627,2]
[378550756,1754911844965,-400.0,0.00016627,2]
[378550758,1754911844975,-402.58181422,0.00016627,2]
[378550760,1754911844984,-400.0,0.00016627,2]
[378550762,1754911844994,-400.0,0.00016627,2]
[378550765,1754911845004,-400.0,0.00016627,2]
[378550767,1754911845016,-400.0,0.00016627,2]
[378550769,1754911845026,-400.0,0.00016627,2]
[378550771,1754911845035,-400.0,0.00016627,2]
[378550773,1754911845045,-401.36630641,0.00016627,2]
[378550775,1754911845054,-400.0,0.00016627,2]
[378550777,1754911845064,-401.58476646,0.00016627,2]
[378550779,1754911845075,-400.0,0.00016627,2]
[378550781,1754911845085,-400.0,0.00016627,2]
[378550783,1754911845096,-402.43563988,0.00016627,2]
[378550785,1754911845104,-524.84,0.00016627,2]
[378550787,1754911845114,-400.0,0.00016627,2]
[378550789,1754911845123,-400.0,0.00016627,2]
[378550790,1754911845133,-528.22295558,0.00016627,2]
[378550793,1754911845143,-400.0,0.00016627,2]
[378550795,1754911845152,-536.86,0.00016627,2]
[378550797,1754911845162,-400.0,0.00016627,2]
[378550799,1754911845172,-400.0,0.00016627,2]
[378550801,1754911845182,-903.5,0.00016627,2]
[378550803,1754911845191,-400.0,0.00016627,2]
[378550805,1754911845201,-400.0,0.00016627,2]
[378550807,1754911845210,-400.0,0.00016627,2]
[378550809,1754911845219,-400.0,0.00016627,2]
[378550811,1754911845228,-400.0,0.00016627,2]
[378550812,1754911845237,-1153.29,0.00016627,2]
[378550815,1754911845247,-400.0,0.00016627,2]
[378550816,1754911845256,-400.0,0.00016627,2]
[378550818,1754911845266,-400.0,0.00016627,2]
[378550820,1754911845275,-408.15356638,0.00016627,2]
[378550822,1754911845284,-400.0,0.00016627,2]
[378550824,1754911845293,-400.0,0.00016627,2]
[378550826,1754911845302,-400.0,0.00016627,2]
[378550828,1754911845312,-400.0,0.00016627,2]
[378550830,1754911845321,-416.76715325,0.00016627,2]
[378550832,1754911845330,-472.32832274,0.00016627,2]
[378550834,1754911845339,-400.0,0.00016627,2]
[378550836,1754911845348,-400.0,0.00016627,2]
[378550838,1754911845358,-405.32864128,0.00016627,2]
[378550840,1754911845369,-400.0,0.00016627,2]
[378550842,1754911845380,-400.0,0.00016627,2]
[378550844,1754911845390,-400.86683605,0.00016627,2]
[378550846,1754911845399,-1167.95341142,0.00016627,5]
[378550848,1754911845409,-746.01,0.00016627,2]
[378550850,1754911845418,-400.0,0.00016627,2]
[378550852,1754911845428,-400.0,0.00016627,2]
[378550854,1754911845437,-400.0,0.00016627,2]
[378550855,1754911845446,-400.0,0.00016627,2]
[378550857,1754911845455,-764.26,0.00016627,2]
[378550859,1754911845465,-400.0,0.00016627,2]
[378550861,1754911845474,-227.04578262,0.00016627,2]
[378550863,1754911845483,-400.0,0.00016627,2]
[378550865,1754911845492,-186.92027112,0.00016627,2]
[378550867,1754911845502,-401.68072302,0.00016627,2]
[378550869,1754911845511,-401.11864574,0.00016627,2]
[378550871,1754911845522,-400.0,0.00016627,2]
[378550873,1754911845531,-401.60516672,0.00016627,2]
[378550875,1754911845541,-400.0,0.00016627,2]
[378550877,1754911845550,-400.0,0.00016627,2]
[378550879,1754911845559,-400.0,0.00016627,2]
[378550881,1754911845569,-400.0,0.00016627,2]
[378550883,1754911845579,-400.0,0.00016627,2]
[378550885,1754911845589,-400.0,0.00016627,2]
[378550887,1754911845598,-400.0,0.00016627,2]
[378550889,1754911845607,-253.27496532,0.00016627,2]
[378550891,1754911845616,-708.49,0.00016627,2]
[378550893,1754911845625,-400.0,0.00016627,2]
[378550895,1754911845634,-400.0,0.00016627,2]
[378550897,1754911845643,-400.0,0.00016627,2]
[378550899,1754911845652,-428.7,0.00016627,2]
[378550901,1754911845661,-400.0,0.00016627,2]
[378550903,1754911845671,-400.0,0.00016627,2]
[378550905,1754911845680,-783.5,0.00016627,2]
[378550907,1754911845690,-614.57,0.00016627,2]
[378550909,1754911845700,-400.0,0.00016627,2]
[378550911,1754911845709,-400.0,0.00016627,2]
[378550913,1754911845718,-400.0,0.00016627,2]
[378550915,1754911845729,-400.0,0.00016627,2]
[378550937,1754911845952,-566.77,0.00016627,2]
[378550939,1754911845962,-488.8093083,0.00016627,2]
[378550941,1754911845972,-400.0,0.00016627,2]
[378550943,1754911845982,-400.0,0.00016627,2]
[378550945,1754911845992,-400.0,0.00016627,2]
[378550947,1754911846001,-400.0,0.00016627,2]
[378550949,1754911846012,-400.0,0.00016627,2]
[378550951,1754911846022,-400.0,0.00016627,2]
[378550953,1754911846032,-400.0,0.00016627,2]
[378550955,1754911846041,-400.0,0.00016627,2]
[378550958,1754911846051,-1226.0,0.00016627,2]
[378550959,1754911846063,-400.0,0.00016627,2]
[378550961,1754911846075,-489.56,0.00016627,2]
[378550963,1754911846085,-400.0,0.00016627,2]
[378550965,1754911846095,-400.0,0.00016627,2]
[378550968,1754911846104,-400.0,0.00016627,2]
[378550971,1754911846114,-400.0,0.00016627,2]
[378550973,1754911846123,-400.92410672,0.00016627,2]
[378550975,1754911846133,-400.0,0.00016627,2]
[378550978,1754911846142,-400.0,0.00016627,2]
[378550980,1754911846152,-401.88582996,0.00016627,2]
[378550983,1754911846162,-400.0,0.00016627,2]
[378550984,1754911846171,-400.0,0.00016627,2]
[378550986,1754911846180,-400.0,0.00016627,2]
[378550988,1754911846190,-400.0,0.00016627,2]
[378550991,1754911846200,-554.25,0.00016627,2]
[378550993,1754911846210,-400.0,0.00016627,2]
[378550994,1754911846219,-739.21,0.00016627,2]
[378550996,1754911846228,-400.0,0.00016627,2]
[378550998,1754911846238,-400.0,0.00016627,2]
[378551000,1754911846247,-400.0,0.00016627,2]
[378551002,1754911846257,-400.0,0.00016627,2]
[378551004,1754911846266,-400.0,0.00016627,2]
[378551006,1754911846275,-888.11,0.00016627,2]
[378551008,1754911846285,-239.63161524,0.00016627,2]
[378551010,1754911846295,-400.0,0.00016627,2]
[378551012,1754911846304,-400.0,0.00016627,2]
[378551014,1754911846314,-500.0,0.00016627,2]
[378551016,1754911846324,-401.35991151,0.00016627,2]
[378551018,1754911846333,-400.0,0.00016627,2]
[378551020,1754911846343,-400.0,0.00016627,2]
[378551022,1754911846352,-559.74,0.00016627,2]
[378551024,1754911846361,-400.0,0.00016627,2]
[378551026,1754911846371,-400.0,0.00016627,2]
[378551028,1754911846381,-400.0,0.00016627,2]
[378551030,1754911846391,-400.0,0.00016627,2]
[378551032,1754911846400,-542.29,0.00016627,2]
[378551034,1754911846409,-400.0,0.00016627,2]
[378551036,1754911846419,-400.0,0.00016627,2]